Cogmind - Beta 16 @@@ ROGUE MODE // 2025.12.15 @ 06:33:42 Player: tsintsir Result: Destroyed by G-47 Trooper with Particle Gun Performance ------------- Evolutions (2) 1000 Regions Visited (4) 800 Robots Destroyed (24) 120 Value Destroyed (671) 671 Prototype IDs (2) 40 Alien Tech Used (0) 0 Bonus (0) 0 TOTAL SCORE: 2631 Bonus ------- None Cogmind --------- Core Integrity 0/550 Matter 300/300 Energy 100/100 System Corruption 0% Temperature Cool (9) Movement Core (250) Ox4 Location -8/Materials Parts ------- > --- POWER (2) -------- (None) > --- PROPULSION (3) --- (None) > --- UTILITY (3) ------ Medium Storage Unit > --- WEAPON (3) ------- Power Maul > --- INVENTORY (10) --- Improved Heat Sink Large Matter Pod (17) Improved Terrain Scanner Assault Rifle Heavy Assault Rifle Datajack Peak State ------------ > --- POWER ------------ Ion Engine Improved Ion Engine > --- PROPULSION ------- Aluminum Leg Aluminum Leg Aluminum Leg > --- UTILITY ---------- Medium Storage Unit Medium Matter Pod Improved Terrain Scanner > --- WEAPON ----------- Assault Rifle Heavy Assault Rifle Light Cannon > --- INVENTORY -------- Improved Heat Sink Datajack [Rating: 15] Favorites ----------- Power Ion Engine Engine Ion Engine Power Core Light Nuclear Core Propulsion Aluminum Leg Leg Aluminum Leg Utility Medium Storage Unit Device Improved Terrain Scanner Storage Medium Storage Unit Processor Signal Interpreter Weapon Improved Light Cannon Ballistic Gun Assault Rifle Ballistic Cannon Improved Light Cannon Impact Weapon Power Maul Special Melee Weapon Datajack Build | -11 -10 -10 -9 -8 ------- Run | Yrd Mat Min Mat Mat Slots Evolved 4 | . . . 2 2 Power 1 | . . . . 1 Propulsion 1 | . . . 1 . Utility 1 | . . . 1 . Weapon 1 | . . . . 1 Parts Attached 33 | 6 10 8 6 3 Power 5 | 1 3 . 1 . Engine 4 | 1 2 . 1 . Core 1 | . 1 . . . Reactor . | . . . . . Propulsion 7 | 2 . 2 2 1 Treads . | . . . . . Leg 7 | 2 . 2 2 1 Wheel . | . . . . . Hover . | . . . . . Flight . | . . . . . Utility 9 | 1 3 3 1 1 Device 1 | . . . 1 . Storage 7 | 1 3 2 . 1 Processor 1 | . . 1 . . Hackware . | . . . . . Protection . | . . . . . Artifact . | . . . . . Weapon 12 | 2 4 3 2 1 Energy Gun . | . . . . . Energy Cannon . | . . . . . Ballistic Gun 5 | 2 1 . 2 . Ballistic Cannon 5 | . 2 3 . . Launcher . | . . . . . Special Weapon . | . . . . . Impact Weapon 1 | . . . . 1 Slashing Weapon . | . . . . . Piercing Weapon . | . . . . . Special Melee Weapon 1 | . 1 . . . Unidentified Prototypes . | . . . . . Parts Lost 16 | . . 7 2 7 Power 3 | . . 1 . 2 Propulsion 7 | . . 2 1 4 Utility 1 | . . 1 . . Weapon 5 | . . 3 1 1 Highest Loss Streak 6 | . . 4 1 6 To Critical Strikes 1 | . . . 1 . Average Backups 4 | 1 4 4 3 3 Power . | . 1 . . . Propulsion . | . . . . . Utility 1 | . . 1 1 1 Weapon . | . . 1 . . Tool/Special . | . . . . . Unused Backups 2 | . 1 . . 1 Power 1 | . 1 . . . Propulsion . | . . . . . Utility 1 | . . . . 1 Weapon . | . . . . . Tool/Special . | . . . . . Average Slot Usage (%) 91 | . 99 95 85 79 Engine 10 | . 11 8 11 13 Core 2 | . 2 5 . . Leg 24 | . 28 26 19 21 Device 4 | . . . 11 6 Storage 23 | . 27 24 22 15 Ballistic Gun 7 | . 25 . 1 13 Ballistic Cannon 17 | . 2 28 20 6 Peak Build Rating 15 | 6 12 14 13 15 Average Rating 10 | 4 7 10 11 12 On Entrance 7 | . 6 12 8 13 Avg Prop Armor Cover (%) . | . . . . . Naked Turns . | . . . . . Heaviest Build 34 | 11 24 25 27 34 Greatest Support 30 | 20 20 20 30 30 Greatest Overweight (x) 4 | . 1 2 2 4 Average Overweight (x) . | . . 1 . 1 Largest Inventory Capacity 10 | 8 10 10 10 10 Average Capacity 9 | 7 8 10 10 10 Most Carried 8 | 3 7 8 5 6 Average Carried 4 | 1 4 4 3 2 Final Capacity 10 | 8 10 10 10 10 Final Carried 7 | 1 7 3 4 6 Class Distribution -------------------- 90% | Mutant 8% | Scavenger-Skirmisher Dominant Class ---------------- Mutant | -10/Materials Mutant | -10/Mines Mutant | -9/Materials Scavenger-Skirmisher | -8/Materials Resources | -11 -10 -10 -9 -8 ----------- Run | Yrd Mat Min Mat Mat Matter Collected 1454 | 244 162 823 120 105 Remotely . | . . . . . Salvage Created 866 | . 316 186 123 241 Parts 49 | . 18 7 11 13 Haulers Intercepted . | . . . . . Recyclers Shooed 1 | . . 1 . . Parts Field Recycled . | . . . . . Retrieved Matter . | . . . . . Parts Self-Destructed . | . . . . . Prevented . | . . . . . Parts Restored . | . . . . . Kills | -11 -10 -10 -9 -8 ------- Run | Yrd Mat Min Mat Mat Combat Hostiles Destroyed 35 | . 7 16 7 5 Melee 1 | . . . . 1 Guns 9 | . 7 . . 2 Cannons 24 | . . 16 7 1 Classes Destroyed 7 | . 2 3 2 . Worker 2 | . 1 1 . . Builder 2 | . . 1 . 1 Recycler 1 | . . 1 . . Swarmer 4 | . . . 4 . Grunt 13 | . 7 . 2 4 Sentry 2 | . . . 1 1 Assembled 16 | . . 16 . . Best Kill Streak 5 | . 4 5 4 4 Combat Bots Only 5 | . 4 5 4 2 Max Kills in Single Turn 2 | . 1 2 2 1 Gunslinging . | . . . . . Exploded . | . . . . . Melee 1 | . . . . 1 Uniques/NPCs Destroyed . | . . . . . Combat | -11 -10 -10 -9 -8 -------- Run | Yrd Mat Min Mat Mat Hostile Shots Fired 278 | . 20 103 29 126 Missed 80 | . 7 25 8 40 Hits 198 | . 13 78 21 86 Melee 6 | . . 6 . . Projectile 192 | . 13 72 21 86 Critical Strikes 7 | . . . 1 6 Part Disruptions 4 | . . 4 . . Damage Taken 2779 | . 151 1078 242 1308 Core 823 | . 53 187 24 559 Absorbed by Shields . | . . . . . Core Remaining (%) 66 | 100 . 4 94 . Volleys Fired 135 | . 46 60 18 11 Largest 3 | . 2 2 2 3 Hottest 73 | . 40 66 63 73 Shots Fired 264 | . 92 107 35 30 Gun 114 | . 92 . . 22 Cannon 150 | . . 107 35 8 Launcher . | . . . . . Special . | . . . . . Kinetic 264 | . 92 107 35 30 Thermal . | . . . . . Explosive . | . . . . . Electromagnetic . | . . . . . Robot Hit Streak 8 | . 8 5 7 5 Robot Miss Streak 5 | . 4 5 3 4 Penetration Max . | . . . . . Secondary Targets . | . . . . . Shots Hit Robots 124 | . 32 52 22 18 Core Hits 56 | . 17 22 8 9 Critical Kills . | . . . . . Critical Parts Destroyed 1 | . . . . 1 Critical Strikes 4 | . . 1 2 1 Blast 3 | . . 1 2 . Smash 1 | . . . . 1 Melee Attacks 9 | . 1 . . 8 Impact 8 | . . . . 8 Slashing . | . . . . . Piercing . | . . . . . Sneak Attacks . | . . . . . Combat Hostiles . | . . . . . Follow-up Attacks . | . . . . . Damage Inflicted 2372 | . 416 1113 444 399 Guns 584 | . 416 . . 168 Cannons 1628 | . . 1113 444 71 Explosions . | . . . . . Melee 160 | . . . . 160 Ramming . | . . . . . Kinetic 2212 | . 416 1113 444 239 Thermal . | . . . . . Explosive . | . . . . . Electromagnetic . | . . . . . Impact 160 | . . . . 160 Slashing . | . . . . . Piercing . | . . . . . Highest Corruption 4 | . . 4 . . Average Corruption 4 | . . 4 . . Corruption Purged . | . . . . . Corruption Blocked . | . . . . . Effects 12 | . . 12 . . Message Errors 3 | . . 3 . . Heat Flow Errors 3 | . . 3 . . Data Loss (minor) 2 | . . 2 . . Data Loss (major) 4 | . . 4 . . Overload Shots . | . . . . . Overflow Damage 121 | . . 66 . 55 Projectiles 66 | . . 66 . . Explosions . | . . . . . Melee 55 | . . . . 55 Knockbacks 28 | . . 22 3 3 Impact 2 | . . . . 2 Kinetic 24 | . . 20 3 1 Secondary 2 | . . 2 . . Self-Inflicted Damage . | . . . . . Shots . | . . . . . Rammed . | . . . . . Targets Rammed 1 | . . . . 1 Kicked 1 | . . . . 1 Crushed . | . . . . . Highest Temperature 240 | . . 240 47 104 Average Temperature 57 | . . 64 21 49 Received Heat Transfer 1427 | . 81 440 87 819 Siege Activations . | . . . . . Martial Activations . | . . . . . Shielding Activations . | . . . . . Robots Disrupted . | . . . . . Combat Hostiles . | . . . . . Robots Corrupted 1 | . . . . 1 Combat Hostiles 1 | . . . . 1 Parts Fried 1 | . . . . 1 Impact Corruptions 2 | . . . . 2 Robots Melted . | . . . . . Combat Hostiles . | . . . . . Parts Melted . | . . . . . Heat Transferred . | . . . . . Parts Sabotaged . | . . . . . Parts Stolen . | . . . . . Parts Stripped . | . . . . . Power Chain Reactions . | . . . . . Alert | -11 -10 -10 -9 -8 ------- Run | Yrd Mat Min Mat Mat Maximum Alert Level . | . . . . . Low Security (%) 100 | 100 100 100 100 100 Level 1 . | . . . . . Level 2 . | . . . . . Level 3 . | . . . . . Level 4 . | . . . . . Level 5 . | . . . . . High Security . | . . . . . Max Security . | . . . . . Peak Influence 152 | . 152 28 90 75 Initial 28 | . . 28 . 21 Average 26 | . 75 2 29 12 Influence Increases 595 | . 269 20 171 135 Destroy 0b10 Robot/C 380 | . 140 . 140 100 Destroy 0b10 Robot/NC 25 | . 5 15 . 5 Destroy Leader 90 | . 30 . 30 30 Successful Hack 31 | . 31 . . . Destroy Structure 9 | . 3 5 1 . Lose Combat Pursuer 60 | . 60 . . . Influence Decreases 575 | . 194 93 121 167 Entered New Map 80 | . . 47 2 31 Time Decay 393 | . 173 46 108 66 Lost Part 81 | . . . 11 70 Purge Threat 21 | . 21 . . . Squads Dispatched 4 | . 3 . . 1 Investigation 2 | . 1 . . 1 Extermination . | . . . . . Reinforcement 2 | . 2 . . . Assault . | . . . . . Garrison . | . . . . . Intercept . | . . . . . Searches Triggered . | . . . . . Construction Impeded . | . . . . . Haulers Reinforced . | . . . . . Active Scanning Responses . | . . . . . Cargo Convoy Interrupts . | . . . . . Stealth | -11 -10 -10 -9 -8 --------- Run | Yrd Mat Min Mat Mat Distress Signals 6 | . 3 . 2 1 Communications Jammed . | . . . . . Distress Signals . | . . . . . Times Spotted 58 | . 13 24 10 11 Peak Tracking Total 6 | . 6 5 4 6 Tactical Retreats 9 | . 1 8 . . Traps | -11 -10 -10 -9 -8 ------- Run | Yrd Mat Min Mat Mat Traps Triggered 1 | . . . . 1 Indirectly . | . . . . . Trap Hack Attempts . | . . . . . Triggered . | . . . . . Disarmed . | . . . . . Reprogrammed . | . . . . . Reused . | . . . . . Traps Extracted . | . . . . . Installed . | . . . . . Triggered . | . . . . . Machines | -11 -10 -10 -9 -8 ---------- Run | Yrd Mat Min Mat Mat Machines Disabled . | . . . . . Max in Single Turn . | . . . . . Machines Repaired . | . . . . . Machines Dismantled . | . . . . . Machines Sabotaged . | . . . . . Overloaded Fab Kills . | . . . . . Hacking | -11 -10 -10 -9 -8 --------- Run | Yrd Mat Min Mat Mat Machines Accessed 2 | . 2 . . . Terminals 2 | . 2 . . . Fabricators . | . . . . . Repair Stations . | . . . . . Recycling Units . | . . . . . Scanalyzers . | . . . . . Garrison Access . | . . . . . Total Hacks 7 | . 7 . . . Successful 4 | . 4 . . . Failed 3 | . 3 . . . Catastrophic . | . . . . . Database Lockouts . | . . . . . Manual . | . . . . . Terminals 7 | . 7 . . . Fabricators . | . . . . . Repair Stations . | . . . . . Recycling Units . | . . . . . Scanalyzers . | . . . . . Garrison Access . | . . . . . Terminal Hacks 4 | . 4 . . . Record 1 | . 1 . . . Prototype ID Bank 1 | . 1 . . . Unreport Threat 1 | . 1 . . . Zone Layout 1 | . 1 . . . Fabricator Hacks . | . . . . . Repair Station Hacks . | . . . . . Recycling Unit Hacks . | . . . . . Scanalyzer . | . . . . . Garrison Access Hacks . | . . . . . Unauthorized Hacks . | . . . . . Terminals . | . . . . . Fabricators . | . . . . . Repair Stations . | . . . . . Recycling Units . | . . . . . Scanalyzers . | . . . . . Garrison Access . | . . . . . Data Cores Recovered . | . . . . . Used . | . . . . . Hacking Detections 1 | . 1 . . . Full Trace Events 1 | . 1 . . . Feedback Events . | . . . . . Feedback Blocked . | . . . . . Robot Schematics Acquired . | . . . . . Robots Built . | . . . . . Authchips . | . . . . . Time . | . . . . . Total Robot Build Rating . | . . . . . Part Schematics Acquired . | . . . . . Parts Built . | . . . . . Authchips . | . . . . . Time . | . . . . . Total Part Build Rating . | . . . . . Part Studies Acquired . | . . . . . Parts Repaired . | . . . . . Time . | . . . . . Parts Recycled . | . . . . . Recycled Matter . | . . . . . Retrieved Matter . | . . . . . Retrieved Components . | . . . . . Parts Scanalyzed . | . . . . . Part Schematics Acquired . | . . . . . Parts Damaged . | . . . . . Bothacking | -11 -10 -10 -9 -8 ------------ Run | Yrd Mat Min Mat Mat Used RIF Installer . | . . . . . Robots Hacked . | . . . . . Non-combat . | . . . . . Combat . | . . . . . Robot Hacks Applied . | . . . . . Relay Couplers Released . | . . . . . Fabnet Peak Effective % . | . . . . . Robots Rewired . | . . . . . Allies Hacked . | . . . . . Hacks Repelled . | . . . . . Allies | -11 -10 -10 -9 -8 -------- Run | Yrd Mat Min Mat Mat Total Allies . | . . . . . Largest Group . | . . . . . Highest-Rated Group . | . . . . . Highest-Rated Ally . | . . . . . Total Orders . | . . . . . Ally Attacks . | . . . . . Total Damage . | . . . . . Kills . | . . . . . Allies Corrupted . | . . . . . Allies Melted . | . . . . . Intel | -11 -10 -10 -9 -8 ------- Run | Yrd Mat Min Mat Mat Active Infowar (turns) 798 | . . . 611 187 Terrain 798 | . . . 611 187 Robot Analysis Total . | . . . . . Derelict Logs Recovered . | . . . . . Drone Launches . | . . . . . Drone Recoveries . | . . . . . Exploration | -11 -10 -10 -9 -8 ------------- Run | Yrd Mat Min Mat Mat Turns Passed 1991 | 61 403 672 611 244 Spaces Moved 816 | 41 177 247 259 92 Core 13 | 4 . . . 9 Treads . | . . . . . Legs 803 | 37 177 247 259 83 Wheels . | . . . . . Hover . | . . . . . Flight . | . . . . . Fastest Speed 50 | 50 120 190 120 120 Average Speed 173 | 113 127 193 189 188 Slowest Speed 260 | 120 190 260 260 250 Overloaded Moves . | . . . . . Propulsion Burnouts . | . . . . . Robots Hopped . | . . . . . Potential Cave-ins . | . . . . . Cave-ins Triggered . | . . . . . Exploration Rate (%) 27 | 3 39 59 27 8 Regions Visited 4 Branch Regions 1 Pre-discovered Areas . | . . . . . Known Exits Taken . | . . . . . Unknown Exits Taken 4 | 1 1 1 1 . Scrap Searched 1 | . . 1 . . Spaces Dug . | . . . . . Terrain Destroyed 8 | . . 8 . . Melee . | . . . . . Projectile 8 | . . 8 . . AOE . | . . . . . Terrain Rammed . | . . . . . Walls Destroyed . | . . . . . Machines Disabled . | . . . . . Actions | -11 -10 -10 -9 -8 --------- Run | Yrd Mat Min Mat Mat Total 1125 | 55 264 337 345 124 Wait 85 | 3 12 11 58 1 Move 812 | 40 176 246 258 92 Hop . | . . . . . Pick Up 22 | 6 6 7 3 . Fast Attach 15 | 1 9 . 2 3 Attach 22 | 5 2 9 4 2 Detach 12 | . 4 1 2 5 Swap . | . . . . . Drop 12 | . 8 3 . 1 Fire 135 | . 46 60 18 11 Melee 9 | . 1 . . 8 Ram . | . . . . . Kick 1 | . . . . 1 Crush . | . . . . . Escape Stasis . | . . . . . Rewire . | . . . . . Trap . | . . . . . Miscellaneous . | . . . . . Route ------- -11/Scrapyard -10/Materials -10/Mines -9/Materials -8/Materials History --------- Turn | Location | Event 23 | -11/Scrapyard | Discovered new exit (range 15) 62 | -11/Scrapyard | Entered Materials 312 | -10/Materials | Build established: Mutant 355 | -10/Materials | Discovered new exit (range 16) 465 | -10/Materials | Entered Mines 521 | -10/Mines | Found DCF Scrap (11 items) 548 | -10/Mines | Assembled infested the area 646 | -10/Mines | Core integrity fell below 50% 751 | -10/Mines | Lost 4 parts (1p2n1w) 808 | -10/Mines | Core integrity fell below 20% 1075 | -10/Mines | Discovered new exit (range 8) 1137 | -10/Mines | Entered Materials 1137 | -9/Materials | Evolved 2 slots: Propulsion x1, Utility x1 1706 | -9/Materials | Discovered new exit (range 8) 1748 | -9/Materials | Entered another Materials area 1748 | -8/Materials | Evolved 2 slots: Power x1, Weapon x1 1952 | -8/Materials | Core integrity fell below 50% 1965 | -8/Materials | Core integrity fell below 20% 1971 | -8/Materials | Lost 6 parts (2p3n1w) 1992 | -8/Materials | Destroyed by G-47 Trooper with Particle Gun Last Messages --------------- effect. G-47 Trooper knocked back. G-47 Trooper system terminally corrupted. Acquired 46 matter. G-47 Trooper knocked back. Acquired 45 matter. Penetrated by Slug. G-47 Trooper suffers critical hit (Smash). Destroyed Particle Gun. G-47 Trooper system corrupted by crushing effect. Lgt. Nuclear Core fried. G-47 Trooper destroyed. W-25 Informer sends out distress signal. R-06 Scavenger collects Imp. Heat Sink. Slug penetrates Neutrino Reactor. R-06 Scavenger collects Aluminum Leg. Carbon-fiber Leg destroyed. Slug penetrates Wall. R-06 Scavenger collects Wheel. Map ----- +----------------------------------------------------+ | ??????????#???# # #??????# ??? | | ??????????????######### #??#???#######+########??? | | ?????????????#????????# #?#???#??????????????????? | | ??????????????????????# ##????????? ?????????????? | | ?????????????????????## #???? ???????????????????? | | ??????????????????????# #????????#???????????????? | | ??????????????????#???# #?? ? ???????????????????? | | ???????????? ?????????# #????????????????????????? | | ??????????????????????# ##???????????????????????? | | ?????????#????????????# #?? ?????????????????????? | | ??????????????????????# #?? ? ??#????????????????? | | ??????????????????#???# ##???????????????????????? | | ????????????#?#???##??# #? ??????????????????????? | | ??????????????????????# #?? ?????????????????????? | | ?????????#??????#?????# #?????????#??????????????? | | ?????????????????????## ####+###########?????????? | | ?????????????????????# #?????????? | | ????????????????????## ! +?????????? | | ?????????????????????# """ #?????????? | | ????????????????????## """ ###### ##?????????? | | ?????????????????????# """ #?????????????????? | | ?????????????????????# #?#??? ???????????? | | ?????????????????##### !% ##??????#?????????? | | ???????????#?????#!! =g!= % ##???????????????? | | ????????????#????#!! ![%* g #????????????????? | | ?????????????????#/ *@ gk #??????? ????????? | | ?????????????????#// [= #### # ???????????????? | | ?????????????????#!! % #??? #????????????????? | | ????????????#????#!! r #??? #????? ??????????? | | ?????????????????##### #??? +????????????????? | | ?????????????????????w #?? #????? ??????????? | | ???????????????????? % #?? #??????#?????????? | | ??????????????? ??? % #??? #????????????????? | | ???????????????? ? #??? #????????????????? | | ???????????????#?#### #???? #????????????????? | | ????????????????????## ##?#?? ?????????????????? | | ?????????????????????# #??#????? ??????????????? | | ??????????????? ?????# #???????????????????????? | | ???????????????????"?# #?????? ????????????????? | | ?????????????????????# #??????? ???????????????? | | ?????????????????????/ ????????????????????????? | | ?????????????????????? ????????????????????????? | | ?????????????????????????????????????????????????? | | ?????????????????????????????????????????????????? | | ?????????????????????????????????????????????????? | | ?????????????????????????????????????????????????? | | ?????????????????????????????????????????????????? | | ?????????????????????????????????????????????????? | | ?????????????????????????????????????????????????? | | ?????????????????????????????????????????????????? | +----------------------------------------------------+ Best States ------------- Heat Dissipation 31 Energy Generation 17 Energy Capacity 415 Matter Stores 400 Matter Capacity 450 Sight Range 16 Terrain Scan Range 16 Terrain Scan Density 10 Evasion (%) 55 Item Schematics ----------------- None Robot Schematics ------------------ None Fabricated ------------ Nothing Repaired ---------- Nothing Studied --------- None Alien Tech Used ----------------- None Achievements -------------- Everything Is Under Control Exterminator Challenges ------------ None Game ------ Seed FlightAutogunCanceller Manual? 0 Play Time 00:25:33 Cumulative 12.8 hours Start 2025.12.15 @ 06:09:30 End 2025.12.15 @ 06:33:42 Sessions 1 Manual Loads 0 Difficulty Rogue Special Mode None Game No. 18 Rogue 18 Adventurer 0 Explorer 0 Win Type - Total 0 Types 0/0/0/0/0/0/0/0/0/0 Lore% 11 Gallery% 19 Achievement% 13 Wizard Run 0 Options --------- Layout 1 ASCII 0 Keyboard 0 Movement Mouse Keybinds 0 Fullscreen 2 Font 32/SmallcapsGlow Map View 50x35 Zoom Use 0% Tactical HUD 0 Map Filters NONE Filters NONE Steam 1 RUN: 3989b758-9e4b-48f1-9ef0-330c8045dab7